Cogmind - Beta 13 @@@ ROGUE MODE // 2024.04.28 @ 23:32:09 Player: szymekc Result: Destroyed by 8R-AWN with 8R-AWN's Boregun Performance ------------- Evolutions (1) 500 Regions Visited (5) 1000 Robots Destroyed (77) 385 Value Destroyed (1560) 1560 Prototype IDs (28) 560 Alien Tech Used (0) 0 Bonus (-816) -816 TOTAL SCORE: 3189 Bonus ------- High Alert Combat Kills 92 Aligned with FarCom 300 Friendly Fire -1208 Cogmind --------- Core Integrity 0/400 Matter 12/300 Energy 100/100 System Corruption 1% Temperature Cool (0) Movement Core (1500) Ox29 Location -9/Exiles Parts ------- > --- POWER (1) -------- (None) > --- PROPULSION (2) --- (None) > --- UTILITY (3) ------ Huge Storage Unit > --- WEAPON (3) ------- Improved Light Cannon Assault Cannon > --- INVENTORY (25) --- Light Treads Light Treads Light Treads Light Treads Wheel Large Storage Unit Medium Matter Pod (100) High-capacity Matter Pod (200) Structural Scanner Seismic Detector Hacking Suite Hacking Suite Hacking Suite Hacking Suite Hacking Suite Tractor Beam Trap Reconfigurator Grenade Launcher Grenade Launcher YI-UF0's Doublenader Plasma Cutter Makeshift Axe Peak State ------------ > --- POWER ------------ Light Ion Engine > --- PROPULSION ------- Wheel Compact Wheel > --- UTILITY ---------- Huge Storage Unit Bomb Drone Bay > --- WEAPON ----------- Assault Cannon Assault Cannon Makeshift Axe > --- INVENTORY -------- Light Ion Engine Nuclear Core Reinforced Deuterium Engine Reinforced Deuterium Engine Light Treads Light Treads Light Treads Light Treads Wheel Cooling System Large Storage Unit Structural Scanner Seismic Detector Hacking Suite Hacking Suite Hacking Suite Hacking Suite Hacking Suite Tractor Beam Improved Light Cannon Improved Light Cannon Grenade Launcher Grenade Launcher YI-UF0's Doublenader Plasma Cutter [Rating: 33] Favorites ----------- Power Ion Engine Engine Ion Engine Propulsion Light Treads Treads Light Treads Leg Aluminum Leg Wheel Wheel Utility Large Storage Unit Device Cooling System Storage Large Storage Unit Processor Salvage Targeting Computer Protection Light Armor Plating Weapon Assault Cannon Energy Gun Medium Laser Ballistic Gun Autogun Ballistic Cannon Assault Cannon Launcher YI-UF0's Doublenader Slashing Weapon Makeshift Axe Build | -11 -10 -10 -9 -9 -9 ------- Run | Yrd Mat Min Mat Min Exi Slots Evolved 2 | . . . 2 . . Power . | . . . . . . Propulsion . | . . . . . . Utility 1 | . . . 1 . . Weapon 1 | . . . 1 . . Parts Attached 56 | . 16 5 20 11 4 Power 5 | . 1 1 1 1 1 Engine 5 | . 1 1 1 1 1 Core . | . . . . . . Reactor . | . . . . . . Propulsion 15 | . 5 2 3 5 . Treads 5 | . 2 2 1 . . Leg 3 | . 3 . . . . Wheel 7 | . . . 2 5 . Hover . | . . . . . . Flight . | . . . . . . Utility 13 | . 4 . 6 2 1 Device 7 | . . . 4 2 1 Storage 3 | . 2 . 1 . . Processor 2 | . 2 . . . . Hackware . | . . . . . . Protection 1 | . . . 1 . . Artifact . | . . . . . . Weapon 23 | . 6 2 10 3 2 Energy Gun 1 | . 1 . . . . Energy Cannon . | . . . . . . Ballistic Gun 7 | . 4 1 2 . . Ballistic Cannon 10 | . 1 . 5 2 2 Launcher 4 | . . 1 3 . . Special Weapon . | . . . . . . Impact Weapon . | . . . . . . Slashing Weapon 1 | . . . . 1 . Piercing Weapon . | . . . . . . Special Melee Weapon . | . . . . . . Unidentified Prototypes 3 | . . 1 1 1 . Parts Lost 16 | . 1 . . 7 8 Power 3 | . . . . 1 2 Propulsion 4 | . . . . 2 2 Utility 4 | . . . . 2 2 Weapon 5 | . 1 . . 2 2 Highest Loss Streak 7 | . 1 . . 6 7 To Critical Strikes 5 | . . . . . 5 Average Slot Usage (%) 96 | . 99 99 100 96 85 Engine 12 | . 14 14 11 10 10 Treads 9 | . 15 26 12 . . Leg 4 | . 12 1 . . . Wheel 10 | . . . 9 21 21 Device 8 | . . . 16 19 10 Storage 14 | . 18 14 11 11 11 Processor 5 | . 8 14 3 . . Ballistic Gun 11 | . 21 28 4 . . Ballistic Cannon 15 | . 4 . 28 21 30 Slashing Weapon 3 | . . . . 10 2 Naked Turns . | . . . . . . Heaviest Build 105 | 13 34 31 105 105 105 Greatest Support 40 | 20 40 40 40 26 26 Greatest Overweight (x) 10 | . 3 1 10 9 4 Average Overweight (x) 1 | . . . 2 4 3 Largest Inventory Capacity 25 | 8 15 15 25 25 25 Average Capacity 18 | 8 14 15 20 25 25 Most Carried 25 | 7 15 15 23 25 25 Average Carried 17 | 6 12 14 17 24 24 Final Capacity 25 | 8 15 15 25 25 25 Final Carried 23 | 7 15 15 23 23 22 Class Distribution -------------------- 77% | Mutant 10% | Gunner 7% | Skirmisher 3% | Scavenger-Skirmisher Dominant Class ---------------- Mutant | -10/Materials Mutant | -10/Mines Skirmisher | -9/Materials Mutant | -9/Mines Gunner | -9/Exiles Resources | -11 -10 -10 -9 -9 -9 ----------- Run | Yrd Mat Min Mat Min Exi Matter Collected 2000 | 206 710 200 695 149 40 Remotely . | . . . . . . Salvage Created 2409 | 17 870 257 881 373 11 Parts 156 | 3 56 9 60 28 . Haulers Intercepted 4 | . 2 . 2 . . Recyclers Shooed 6 | . 5 . 1 . . Parts Field Recycled . | . . . . . . Retrieved Matter . | . . . . . . Parts Self-Destructed . | . . . . . . Prevented . | . . . . . . Kills | -11 -10 -10 -9 -9 -9 ------- Run | Yrd Mat Min Mat Min Exi Combat Hostiles Destroyed 46 | . 16 . 25 3 2 Melee 1 | . . . . 1 . Guns 16 | . 16 . . . . Cannons 20 | . . . 16 2 2 AOE 9 | . . . 9 . . Classes Destroyed 13 | 1 6 . 4 1 1 Worker 3 | . . . 2 1 . Builder 6 | . . . 3 3 . Tunneler 5 | 1 1 1 . 2 . Hauler 4 | . 2 . 2 . . Recycler 9 | . 2 2 2 3 . Operator 1 | . 1 . . . . Watcher 4 | . 3 . 1 . . Swarmer 14 | . 6 . 8 . . Grunt 22 | . 10 . 10 2 . Duelist 1 | . . . 1 . . Sentry 6 | . . . 6 . . Demolisher 1 | . . . . 1 . Assembled 2 | . . . . . 2 Best Kill Streak 11 | 1 4 2 11 4 2 Combat Bots Only 8 | . 4 . 8 2 2 Max Kills in Single Turn 3 | 1 2 1 3 2 1 Gunslinging 1 | . 1 . . . . Exploded 3 | . . . 3 . . Melee 1 | . . . . 1 . Uniques/NPCs Destroyed 1 | . . 1 . . . YI-UF0 (-10/Mines) Combat | -11 -10 -10 -9 -9 -9 -------- Run | Yrd Mat Min Mat Min Exi Hostile Shots Fired 259 | . 116 . 73 14 56 Missed 79 | . 35 . 29 1 14 Damage Taken 2835 | . 836 . 519 492 988 Core 578 | . 165 . 64 145 204 Absorbed by Shields . | . . . . . . Core Remaining (%) 67 | 100 . 34 . . . Volleys Fired 183 | 6 98 10 39 4 26 Largest 3 | 2 2 2 3 2 3 Hottest 132 | 70 70 46 132 88 127 Shots Fired 360 | 12 164 20 91 8 65 Gun 185 | 12 153 20 . . . Cannon 169 | . 11 . 85 8 65 Launcher 6 | . . . 6 . . Special . | . . . . . . Kinetic 334 | 6 150 20 85 8 65 Thermal 20 | 6 14 . . . . Explosive 6 | . . . 6 . . Electromagnetic . | . . . . . . Robot Hit Streak 7 | 2 6 7 7 3 5 Robot Miss Streak 5 | 3 5 1 2 1 2 Penetration Max . | . . . . . . Secondary Targets 1 | . 1 . . . . Max Gunslinging Chain 1 | . 1 . . . . Shots Hit Robots 217 | 5 97 15 48 14 38 Core Hits 108 | 2 40 8 42 9 7 Critical Kills . | . . . . . . Critical Parts Destroyed . | . . . . . . Critical Strikes 2 | . . . 1 . 1 Blast 2 | . . . 1 . 1 Melee Attacks 15 | . . . . 15 . Impact . | . . . . . . Slashing 15 | . . . . 15 . Piercing . | . . . . . . Sneak Attacks 7 | . . . . 7 . Combat Hostiles . | . . . . . . Follow-up Attacks . | . . . . . . Damage Inflicted 5288 | 49 1259 225 2025 795 935 Guns 1418 | 43 1154 221 . . . Cannons 2374 | . 94 . 1229 116 935 Explosions 836 | . . . 796 40 . Melee 639 | . . . . 639 . Ramming 21 | 6 11 4 . . . Kinetic 3689 | 30 1158 221 1229 116 935 Thermal 143 | 13 90 . . 40 . Explosive 796 | . . . 796 . . Electromagnetic . | . . . . . . Impact . | . . . . . . Slashing 639 | . . . . 639 . Piercing . | . . . . . . Highest Corruption 3 | . 3 3 . . 1 Average Corruption 2 | . 2 3 . . 1 Corruption Purged . | . . . . . . Corruption Blocked . | . . . . . . Effects 10 | . 5 5 . . . Message Errors 1 | . . 1 . . . Matter Fused 5 | . 2 3 . . . Heat Flow Errors 2 | . 2 . . . . Energy Discharges 1 | . . 1 . . . Data Loss (minor) 1 | . 1 . . . . Overload Shots . | . . . . . . Overflow Damage 251 | . . . 32 199 20 Projectiles 29 | . . . 9 . 20 Explosions 23 | . . . 23 . . Melee 199 | . . . . 199 . Knockbacks 9 | . 1 . 3 . 5 Impact . | . . . . . . Kinetic 9 | . 1 . 3 . 5 Secondary . | . . . . . . Self-Inflicted Damage 12 | . . . 12 . . Shots 1 | . . . 1 . . Rammed . | . . . . . . Targets Rammed 7 | 3 3 1 . . . Kicked 5 | 3 2 . . . . Crushed 2 | . 1 1 . . . Highest Temperature 262 | 80 218 12 156 . 262 Average Temperature 52 | 30 41 5 55 . 107 Received Heat Transfer 510 | . 351 . 150 9 . Siege Activations . | . . . . . . Robots Corrupted . | . . . . . . Combat Hostiles . | . . . . . . Parts Fried . | . . . . . . Impact Corruptions . | . . . . . . Robots Melted . | . . . . . . Combat Hostiles . | . . . . . . Parts Melted . | . . . . . . Heat Transferred 346 | 37 259 . . 50 . Parts Sabotaged . | . . . . . . Parts Stolen . | . . . . . . Parts Stripped . | . . . . . . Power Chain Reactions . | . . . . . . Alert | -11 -10 -10 -9 -9 -9 ------- Run | Yrd Mat Min Mat Min Exi Peak Influence 663 | 5 260 78 663 339 . Initial 258 | . . 63 . 258 . Average 120 | 2 119 41 318 126 . Maximum Alert Level 2 | . 1 . 2 1 . Low Security (%) 83 | 100 95 100 44 69 . Level 1 10 | . 4 . 2 30 . Level 2 6 | . . . 52 . . Level 3 . | . . . . . . Level 4 . | . . . . . . Level 5 . | . . . . . . High Security . | . . . . . . Max Security . | . . . . . . Squads Dispatched 7 | . 4 . 3 . . Investigation 4 | . 3 . 1 . . Extermination . | . . . . . . Reinforcement 2 | . 1 . 1 . . Assault 1 | . . . 1 . . Garrison . | . . . . . . Intercept . | . . . . . . Searches Triggered . | . . . . . . Construction Impeded . | . . . . . . Haulers Reinforced . | . . . . . . Active Scanning Responses . | . . . . . . Cargo Convoy Interrupts . | . . . . . . Stealth | -11 -10 -10 -9 -9 -9 --------- Run | Yrd Mat Min Mat Min Exi Distress Signals 5 | . 2 . 3 . . Communications Jammed . | . . . . . . Distress Signals . | . . . . . . Times Spotted 78 | . 30 . 31 4 13 Peak Tracking Total 11 | . 5 . 9 2 11 Tactical Retreats 4 | . 1 . 2 . 1 Traps | -11 -10 -10 -9 -9 -9 ------- Run | Yrd Mat Min Mat Min Exi Traps Triggered 3 | . 3 . . . . Indirectly . | . . . . . . Trap Hack Attempts . | . . . . . . Triggered . | . . . . . . Disarmed . | . . . . . . Reprogrammed . | . . . . . . Reused . | . . . . . . Traps Extracted . | . . . . . . Installed . | . . . . . . Triggered . | . . . . . . Machines | -11 -10 -10 -9 -9 -9 ---------- Run | Yrd Mat Min Mat Min Exi Machines Disabled 7 | . 2 . 1 1 3 Max in Single Turn 1 | . 1 . 1 1 1 Machines Repaired . | . . . . . . Machines Dismantled . | . . . . . . Machines Sabotaged . | . . . . . . Overloaded Fab Kills . | . . . . . . Hacking | -11 -10 -10 -9 -9 -9 --------- Run | Yrd Mat Min Mat Min Exi Machines Accessed 14 | . 8 1 2 1 2 Terminals 8 | . 6 . 1 1 . Fabricators . | . . . . . . Repair Stations . | . . . . . . Recycling Units 3 | . 2 . 1 . . Scanalyzers . | . . . . . . Garrison Access . | . . . . . . Total Hacks 30 | . 20 1 6 1 2 Successful 18 | . 10 1 4 1 2 Failed 11 | . 9 . 2 . . Catastrophic 4 | . 4 . . . . Database Lockouts 1 | . 1 . . . . Manual 19 | . 15 . 3 . 1 Terminals 21 | . 15 . 5 1 . Fabricators . | . . . . . . Repair Stations . | . . . . . . Recycling Units 6 | . 5 . 1 . . Scanalyzers . | . . . . . . Garrison Access . | . . . . . . Terminal Hacks 11 | . 4 1 3 1 2 Record 2 | . . . . 1 1 Robot Analysis 3 | . 1 . 2 . . Prototype ID Bank 1 | . 1 . . . . Open Door 1 | . . 1 . . . Terminal Index 1 | . 1 . . . . Locate Traps 1 | . . . 1 . . Hauler Manifests 1 | . 1 . . . . Derelict Proto ID Bank 1 | . . . . . 1 Fabricator Hacks . | . . . . . . Repair Station Hacks . | . . . . . . Recycling Unit Hacks 2 | . 2 . . . . Retrieve Components 2 | . 2 . . . . Scanalyzer . | . . . . . . Garrison Access Hacks . | . . . . . . Unauthorized Hacks 5 | . 4 . 1 . . Terminals 2 | . 2 . . . . Assimilate 1 | . 1 . . . . Operators 1 | . 1 . . . . Fabricators . | . . . . . . Repair Stations . | . . . . . . Recycling Units 3 | . 2 . 1 . . Tunnel 3 | . 2 . 1 . . Scanalyzers . | . . . . . . Garrison Access . | . . . . . . Data Cores Recovered . | . . . . . . Used . | . . . . . . Hacking Detections 8 | . 7 . 1 . . Full Trace Events . | . . . . . . Feedback Events . | . . . . . . Feedback Blocked . | . . . . . . Robot Schematics Acquired . | . . . . . . Robots Built . | . . . . . . Authchips . | . . . . . . Time . | . . . . . . Total Robot Build Rating . | . . . . . . Part Schematics Acquired . | . . . . . . Parts Built . | . . . . . . Authchips . | . . . . . . Time . | . . . . . . Total Part Build Rating . | . . . . . . Parts Repaired . | . . . . . . Time . | . . . . . . Parts Recycled . | . . . . . . Recycled Matter . | . . . . . . Retrieved Matter . | . . . . . . Retrieved Components 12 | . 12 . . . . Parts Scanalyzed . | . . . . . . Part Schematics Acquired . | . . . . . . Parts Damaged . | . . . . . . Bothacking | -11 -10 -10 -9 -9 -9 ------------ Run | Yrd Mat Min Mat Min Exi Used RIF Installer . | . . . . . . Robots Hacked . | . . . . . . Non-combat . | . . . . . . Combat . | . . . . . . Robot Hacks Applied . | . . . . . . Relay Couplers Released . | . . . . . . Fabnet Peak Effective % . | . . . . . . Robots Rewired . | . . . . . . Allies Hacked . | . . . . . . Hacks Repelled . | . . . . . . Allies | -11 -10 -10 -9 -9 -9 -------- Run | Yrd Mat Min Mat Min Exi Total Allies 1 | . 1 . . . . Largest Group 1 | . 1 . . . . Highest-Rated Group 10 | . 10 . . . . Highest-Rated Ally 10 | . 10 . . . . Total Orders 2 | . . . . 1 1 RETURN 2 | . . . . 1 1 Ally Attacks 16 | . . . . . 16 Total Damage . | . . . . . . Kills . | . . . . . . Allies Corrupted . | . . . . . . Allies Melted . | . . . . . . Intel | -11 -10 -10 -9 -9 -9 ------- Run | Yrd Mat Min Mat Min Exi Robot Analysis Total 3 | . 1 . 2 . . Derelict Logs Recovered 2 | . . 1 . 1 . Drone Launches 18 | . . . . 1 17 Drone Recoveries 2 | . . . . 1 1 Exploration | -11 -10 -10 -9 -9 -9 ------------- Run | Yrd Mat Min Mat Min Exi Turns Passed 5850 | 614 1802 666 591 1333 844 Spaces Moved 2495 | 48 861 385 250 444 507 Core . | . . . . . . Treads 960 | . 473 364 123 . . Legs 457 | 48 388 21 . . . Wheels 1078 | . . . 127 444 507 Hover . | . . . . . . Flight . | . . . . . . Fastest Speed 120 | 120 120 160 155 135 135 Average Speed 159 | 120 172 161 165 148 146 Slowest Speed 560 | 120 330 190 560 215 150 Overloaded Moves . | . . . . . . Propulsion Burnouts . | . . . . . . Robots Hopped . | . . . . . . Cave-ins Triggered . | . . . . . . Exploration Rate (%) 57 | 5 97 89 21 66 69 Regions Visited 5 Branch Regions 3 Pre-discovered Areas 4 | . 2 . 1 . 1 Known Exits Taken . | . . . . . . Unknown Exits Taken 5 | 1 1 1 1 1 . Scrap Searched 2 | . . 1 . 1 . Spaces Dug 3 | . . . . 3 . Terrain Destroyed 78 | . . . 66 10 2 Melee 3 | . . . . 3 . Projectile 19 | . . . 15 2 2 AOE 56 | . . . 51 5 . Terrain Rammed . | . . . . . . Walls Destroyed . | . . . . . . Machines Disabled . | . . . . . . Actions | -11 -10 -10 -9 -9 -9 --------- Run | Yrd Mat Min Mat Min Exi Total 4059 | 593 1044 416 355 1096 555 Wait 1196 | 536 25 . 16 611 8 Move 2490 | 47 860 384 249 443 507 Hop . | . . . . . . Pick Up 57 | 1 21 6 16 7 6 Fast Attach 20 | . 8 3 7 2 . Attach 13 | . . 2 3 5 3 Detach . | . . . . . . Swap 23 | . 8 . 10 4 1 Drop 55 | . 21 10 15 5 4 Fire 183 | 6 98 10 39 4 26 Melee 15 | . . . . 15 . Ram . | . . . . . . Kick 5 | 3 2 . . . . Crush 2 | . 1 1 . . . Escape Stasis . | . . . . . . Rewire . | . . . . . . Trap . | . . . . . . Miscellaneous . | . . . . . . Route ------- -11/Scrapyard -10/Materials (discovered 4 exits: *Mat x3 / *Min) -10/Mines -9/Materials (discovered 2 exits: Mat / *Min) -9/Mines -9/Exiles History --------- Turn | Location | Event 1 | -11/Scrapyard | Discovered new exit (range 2) 615 | -11/Scrapyard | Entered Materials 616 | -10/Materials | Build established: Mutant 760 | -10/Materials | Discovered new exit (range 15) 1110 | -10/Materials | Central database locked down 1255 | -10/Materials | Discovered new exit (range 13) 1527 | -10/Materials | Discovered new exit (range 9) 1673 | -10/Materials | Discovered new exit (range 15) 1735 | -10/Materials | Core integrity fell below 50% 2417 | -10/Materials | Entered Mines 2483 | -10/Mines | Learned 2 Materials zone layouts 2536 | -10/Mines | YI-UF0 nonchalantly dropped a Grenade Launcher on the ground 2560 | -10/Mines | Murdered YI-UF0 2560 | -10/Mines | Destroyed YI-UF0 2573 | -10/Mines | Found Prototype Launcher 2573 | -10/Mines | Identified YI-UF0's Doublenader 2699 | -10/Mines | Found the Drone Emporium 2706 | -10/Mines | Found Prototype Device 2759 | -10/Mines | A weapon hastily lodged in a ceiling crevice suddenly fell to the ground 3078 | -10/Mines | Discovered new exit (range 3) 3083 | -10/Mines | Entered Materials 3083 | -9/Materials | Evolved 2 slots: Utility x1, Weapon x1 3084 | -9/Materials | Identified exit to Materials 3382 | -9/Materials | Destroyed 8 combat bots 3435 | -9/Materials | Discovered new exit (range 16) 3444 | -9/Materials | Build established: Skirmisher 3483 | -9/Materials | First assault squad dispatched 3674 | -9/Materials | Entered Mines 3917 | -9/Mines | Deemed a non-threat by the Exiles lab entrance 3917 | -9/Mines | Discovered new exit (range 5) 4013 | -9/Mines | Learned location of 1 exit from Materials 4029 | -9/Mines | Build established: Mutant 4097 | -9/Mines | Assembled infested the area 4785 | -9/Mines | Core integrity fell below 50% 4806 | -9/Mines | Lost 6 parts (1p2n1u2w) 4968 | -9/Mines | Identified Bomb Drone Bay 5007 | -9/Mines | Entered Exiles 5045 | -9/Exiles | Met 8R-AWN 5066 | -9/Exiles | Met EX-HEX 5103 | -9/Exiles | Met EX-BIN 5120 | -9/Exiles | Aligned with FarCom system 5122 | -9/Exiles | Given EX-Vault access code 5154 | -9/Exiles | Opened EX-Vault 5167 | -9/Exiles | Found Trap Reconfigurator 5199 | -9/Exiles | Warned to stay clear of 0b10 Research branches 5268 | -9/Exiles | Met EX-DEC 5274 | -9/Exiles | Learned location of Zion (-6) 5467 | -9/Exiles | Build established: Gunner 5741 | -9/Exiles | Attacked by the Exiles 5793 | -9/Exiles | Core integrity fell below 20% 5815 | -9/Exiles | Lost 15 allies 5851 | -9/Exiles | Destroyed by 8R-AWN with 8R-AWN's Boregun Last Messages --------------- 05814_ 8R-AWN knocked back. 05816_ Penetrated by HV Slug. 05821_ The unstable cave ceiling collapses. 05822_ Penetrated by HV Slug. 05826_ The unstable cave ceiling collapses. 05826_ HV Slug penetrates Wall. 05829_ Penetrated by HV Slug. 05829_ Critical hit (Destroy). 05829_ Lgt. Ion Engine destroyed. 05832_ 8R-AWN knocked back. 05832_ Penetrated by HV Slug. 05832_ Cooling System destroyed. 05833_ Penetrated by HV Slug. 05841_ Com. Wheel destroyed. 05841_ 8R-AWN knocked back. 05842_ Penetrated by HV Slug. 05848_ HV Slug penetrates EX-Message Board. 05848_ EX-Message Board disabled. 05848_ HV Slug penetrates Wall. 05850_ Penetrated by HV Slug. Map ----- +----------------------------------------------------+ | ??????????????????????????#""""""?# #?######## | | ???????????????????????????#"###??# #?#""""""" | | ??????????????????????????????????# #?#""""""" | | ??????????????????????????????????# #?#""""""" | | ?????????????????????????????????## ###"" """" | | ?#######?????????????????????????#" """" | | ?#!!! "#?????????????????????????#" """ | | ?# "#?????????????????????????#" """ | | ?# "#?????????????????????????#" """ | | ## ""#????????????######???????#" """ | | #" ""#??????????? """#???????#" """ | | #" ""#??????????#"" """#???????## """ | | "" ###??????????#"" #????????# """ | | #????????????#"" #????????#" "X" """ | | ##???????????#"" "#????????#" """ | | "#???????????# ""#????????#" """"""""" | | ###??????????"" ""#???????##" ########## | | ##??????????# #????????##"" #????????? | | ##"" ######???### ###?######"" #????????? | | ?##" """##### # #"###""""""" ##???????? | | ??#" """""" " "" ##???#### | | ??#"# """ " #####""" | | ??#### " " " | | ?????### " | | ???????### | | ?????????## @ %%% | | ??????????## %% | | ???????????##" g[%% | | ????????????# %% | | ???????????## # ## | | ?????????### # ## ## | | ????????## # # # " | | ????????## ### # """ | | ????????# # #### # "" | | ???????## % ############"""" | | ???????# # # ####""" | | ???????## # """" | | ????????# # | | ????????# | | ????????# # | | ????????# " "" | | ????????## # ""## ##""" " " " | | ?????????### ""#### #???##""" "" | | ???????????# """"##??# #???????"""? | | ???????????## &! """#??## ####???????? | | ????????????# ""##??#! "!#???????? | | ????????????# """##???#" !#???????? | | ????????????# # ##????#" "#???????? | | ????????????## #" "" ##?????#!!""!"#???????? | | ?????????????##### #??????########???????? | +----------------------------------------------------+ Best States ------------- Heat Dissipation 50 Energy Generation 12 Energy Capacity 265 Matter Stores 300 Matter Capacity 300 Sight Range 16 Terrain Scan Range 14 Terrain Scan Density 10 Armor Coverage 150 Evasion (%) 55 Targeting Accuracy 5 Recoil Reduction 2 Salvage Targeting 1 Item Schematics ----------------- None Robot Schematics ------------------ None Fabricated ------------ Nothing Alien Tech Used ----------------- None Achievements -------------- None Challenges ------------ None Game ------ Seed ThermoelectricRocketLog Manual? 0 Play Time 00:40:46 Cumulative 230.1 hours Start 2024.04.28 @ 22:37:22 End 2024.04.28 @ 23:32:09 Sessions 1 Manual Loads 0 Difficulty Rogue Special Mode None Game No. 85 Rogue 83 Adventurer 2 Explorer 0 Win Type - Total 5 Types 4/0/0/1/0/0/0/0/0 Lore% 73 Gallery% 81 Achievement% 68 Wizard Run 0 Options --------- Layout 0 ASCII 0 Keyboard 0 Movement Numpad Keybinds 0 Fullscreen 2 Font 24/Smallcaps Map View 76x50 Zoom Use 0% Tactical HUD 1 Map Filters NONE Filters NONE Steam 1 RUN: 9557232f-af06-4133-8835-fb823141a2f2